Cogmind - Beta 9.6 @@@ ROGUE MODE // 2020.04.14 @ 20:36:01 // Winter2019/RPGLIKE Player: IAMCRAIG Result: Destroyed by D-53 Grenadier with Mini Grenade Launcher Performance ------------- Evolutions (0) 0 Regions Visited (0) 0 Robots Destroyed (7) 35 Value Destroyed (73) 73 Prototype IDs (0) 0 Alien Tech Used (0) 0 Bonus (0) 0 TOTAL SCORE: 108 Bonus ------- None Cogmind --------- Core Integrity 0/600 Matter 273/300 Energy 250/250 System Corruption 0% Temperature Cool (0) Movement Treading (160) Location -11/Scrapyard Parts ------- > --- POWER (1) -------- Ion Engine > --- PROPULSION (2) --- Light Treads Wheel > --- UTILITY (2) ------ Improved Terrain Scanner Seismic Analyzer > --- WEAPON (2) ------- Light Assault Rifle Light Assault Rifle > --- INVENTORY (1) ---- Compact Wheel Peak State ------------ > --- POWER ------------ Ion Engine > --- PROPULSION ------- Light Treads Wheel > --- UTILITY ---------- Improved Terrain Scanner Seismic Analyzer > --- WEAPON ----------- Light Assault Rifle Light Assault Rifle > --- INVENTORY -------- Compact Wheel [Rating: 8] Favorites ----------- Power Ion Engine Engine Ion Engine Propulsion Light Treads Treads Light Treads Wheel Wheel Utility Improved Terrain Scanner Device Improved Terrain Scanner Processor Seismic Analyzer Weapon Light Assault Rifle Ballistic Gun Light Assault Rifle Build | -11 ------- Run | Scr Slots Evolved 3 | 3 Power . | . Propulsion 1 | 1 Utility 1 | 1 Weapon 1 | 1 Parts Attached 10 | 10 Power 1 | 1 Engine 1 | 1 Core . | . Reactor . | . Propulsion 3 | 3 Treads 1 | 1 Leg . | . Wheel 2 | 2 Hover . | . Flight . | . Utility 2 | 2 Device 1 | 1 Storage . | . Processor 1 | 1 Hackware . | . Protection . | . Artifact . | . Weapon 4 | 4 Energy Gun . | . Energy Cannon . | . Ballistic Gun 4 | 4 Ballistic Cannon . | . Launcher . | . Special Weapon . | . Impact Weapon . | . Slashing Weapon . | . Piercing Weapon . | . Special Melee Weapon . | . Unidentified Prototypes . | . Parts Lost . | . Power . | . Propulsion . | . Utility . | . Weapon . | . Highest Loss Streak . | . Average Slot Usage (%) . | . Naked Turns . | . Heaviest Build 8 | 8 Greatest Support 25 | 25 Greatest Overweight (x) . | . Average Overweight (x) . | . Largest Inventory Capacity 1 | 1 Average Capacity . | . Most Carried 1 | 1 Average Carried . | . Final Capacity 1 | 1 Final Carried 1 | 1 Class Distribution -------------------- None Dominant Class ---------------- None Resources | -11 ----------- Run | Scr Matter Collected 296 | 296 Remotely . | . Salvage Created 148 | 148 Parts 8 | 8 Haulers Intercepted . | . Recyclers Shooed 1 | 1 Parts Field Recycled . | . Retrieved Matter . | . Parts Self-Destructed . | . Prevented . | . Kills | -11 ------- Run | Scr Combat Hostiles Destroyed 4 | 4 Guns 4 | 4 Classes Destroyed 4 | 4 Tunneler 2 | 2 Recycler 1 | 1 Demolisher 1 | 1 Assembled 3 | 3 Best Kill Streak 4 | 4 Combat Bots Only 4 | 4 Max Kills in Single Turn 1 | 1 Gunslinging . | . Exploded . | . Melee . | . Uniques/NPCs Destroyed . | . Combat | -11 -------- Run | Scr Damage Taken 757 | 757 Core 625 | 625 Absorbed by Shields . | . Redirected to Core 473 | 473 Core Remaining (%) . | . Volleys Fired 16 | 16 Largest 2 | 2 Hottest 40 | 40 Shots Fired 31 | 31 Gun 31 | 31 Cannon . | . Launcher . | . Special . | . Kinetic 31 | 31 Thermal . | . Explosive . | . Electromagnetic . | . Robot Hit Streak 5 | 5 Robot Miss Streak 3 | 3 Penetration Max . | . Secondary Targets 1 | 1 Max Gunslinging Chain 1 | 1 Shots Hit Robots 18 | 18 Core Hits 9 | 9 Critical Hits 1 | 1 Critical Kills 1 | 1 Critical Parts Destroyed . | . Melee Attacks . | . Impact . | . Slashing . | . Piercing . | . Sneak Attacks . | . Combat Hostiles . | . Follow-up Attacks . | . Damage Inflicted 166 | 166 Guns 163 | 163 Cannons . | . Explosions . | . Melee . | . Ramming 3 | 3 Kinetic 163 | 163 Thermal . | . Explosive . | . Electromagnetic . | . Impact . | . Slashing . | . Piercing . | . Highest Corruption . | . Average Corruption . | . Corruption Purged . | . Overload Shots . | . Overflow Damage . | . Projectiles . | . Explosions . | . Melee . | . Knockbacks . | . Impact . | . Kinetic . | . Secondary . | . Self-Inflicted Damage . | . Shots . | . Rammed 2 | 2 Targets Rammed 2 | 2 Kicked . | . Crushed . | . Highest Temperature 40 | 40 Average Temperature 28 | 28 Received Heat Transfer 200 | 200 Siege Activations . | . Robots Corrupted . | . Combat Hostiles . | . Parts Fried . | . Impact Corruptions . | . Robots Melted . | . Combat Hostiles . | . Parts Melted . | . Heat Transferred . | . Parts Sabotaged . | . Parts Stolen . | . Parts Stripped . | . Power Chain Reactions . | . Missiles Intercepted . | . Alert | -11 ------- Run | Scr Peak Influence 30 | 30 Average Influence 1 | 1 Maximum Alert Level . | . Low Security (%) 100 | 100 Level 1 . | . Level 2 . | . Level 3 . | . Level 4 . | . Level 5 . | . High Security . | . Max Security . | . Squads Dispatched . | . Investigation . | . Extermination . | . Reinforcement . | . Assault . | . Garrison . | . Intercept . | . Construction Impeded . | . Haulers Reinforced . | . Stealth | -11 --------- Run | Scr Distress Signals . | . Communications Jammed . | . Distress Signals . | . Times Spotted 27 | 27 Peak Tracking Total 20 | 20 Tactical Retreats 1 | 1 Traps | -11 ------- Run | Scr Traps Triggered . | . Indirectly . | . Trap Hack Attempts . | . Triggered . | . Disarmed . | . Reprogrammed . | . Reused . | . Traps Extracted . | . Installed . | . Triggered . | . Machines | -11 ---------- Run | Scr Machines Disabled . | . Max in Single Turn . | . Machines Sabotaged . | . Garrisons Compromised . | . Overloaded Fab Kills . | . Fab Network Shutdowns . | . Hacking | -11 --------- Run | Scr Machines Accessed . | . Terminals . | . Fabricators . | . Repair Stations . | . Recycling Units . | . Scanalyzers . | . Garrison Access . | . Total Hacks . | . Successful . | . Failed . | . Catastrophic . | . Database Lockouts . | . Manual . | . Terminals . | . Fabricators . | . Repair Stations . | . Recycling Units . | . Scanalyzers . | . Garrison Access . | . Terminal Hacks . | . Fabricator Hacks . | . Repair Station Hacks . | . Recycling Unit Hacks . | . Scanalyzer . | . Garrison Access Hacks . | . Unauthorized Hacks . | . Terminals . | . Fabricators . | . Repair Stations . | . Recycling Units . | . Scanalyzers . | . Garrison Access . | . Data Cores Recovered . | . Used . | . Hacking Detections . | . Full Trace Events . | . Feedback Events . | . Feedback Blocked . | . Robot Schematics Acquired . | . Robots Built . | . Matter . | . Time . | . Total Robot Build Rating . | . Part Schematics Acquired . | . Parts Built . | . Matter . | . Time . | . Total Part Build Rating . | . Parts Repaired . | . Time . | . Parts Recycled . | . Recycled Matter . | . Retrieved Matter . | . Retrieved Components . | . Parts Scanalyzed . | . Part Schematics Acquired . | . Parts Damaged . | . Bothacking | -11 ------------ Run | Scr Used RIF Installer . | . Robots Hacked . | . Non-combat . | . Combat . | . Robot Hacks Applied . | . Relay Couplers Released . | . Robots Rewired . | . Allies Hacked . | . Hacks Repelled . | . Allies | -11 -------- Run | Scr Total Allies . | . Largest Group . | . Highest-Rated Group . | . Highest-Rated Ally . | . Total Orders . | . Ally Attacks . | . Total Damage . | . Kills . | . Allies Corrupted . | . Allies Melted . | . Intel | -11 ------- Run | Scr Robot Analysis Total . | . Derelict Logs Recovered . | . Drone Launches . | . Drone Recoveries . | . Exploration | -11 ------------- Run | Scr Turns Passed 2709 | 2709 Spaces Moved 595 | 595 Core 1 | 1 Treads 36 | 36 Legs . | . Wheels 558 | 558 Hover . | . Flight . | . Fastest Speed 50 | 50 Average Speed 84 | 84 Slowest Speed 160 | 160 Overloaded Moves . | . Propulsion Burnouts . | . Robots Hopped . | . Cave-ins Triggered . | . Exploration Rate (%) 63 | 63 Regions Visited . Branch Regions . Pre-discovered Areas . | . Known Exits Taken . | . Unknown Exits Taken . | . Scrap Searched . | . Spaces Dug . | . Terrain Destroyed . | . Melee . | . Projectile . | . AOE . | . Actions | -11 --------- Run | Scr Total 2768 | 2768 Wait 2143 | 2143 Move 595 | 595 Hop . | . Pick Up . | . Fast Attach 9 | 9 Attach . | . Detach . | . Swap 1 | 1 Drop 1 | 1 Fire 16 | 16 Melee . | . Ram . | . Kick . | . Crush 2 | 2 Escape Stasis . | . Rewire . | . Trap . | . Miscellaneous 1 | 1 Route ------- -11/Scrapyard (discovered 1 exit: [*Mat]) History --------- Turn | Location | Event 2 | -11/Scrapyard | Upgraded with Propulsion slot (x1) 2 | -11/Scrapyard | Upgraded with Utility slot (x1) 2 | -11/Scrapyard | Upgraded with Weapon slot (x1) 10 | -11/Scrapyard | Discovered new exit (range 14) 2641 | -11/Scrapyard | Assembled infested the area 2662 | -11/Scrapyard | Core integrity fell below 50% 2702 | -11/Scrapyard | Core integrity fell below 20% 2710 | -11/Scrapyard | Destroyed by D-53 Grenadier with Mini Grenade Launcher Last Messages --------------- 02693_ as-84999 destroyed. 02693_ as-17055 destroyed. 02693_ as-33850 destroyed. 02693_ as-82177 destroyed. 02693_ as-39778 destroyed. 02693_ as-90717 destroyed. 02693_ as-28406 destroyed. 02697_ D-53 Grenadier destroyed. 02697_ Switching to secondary target: D-53 Grenadier. 02698_ The unstable cave ceiling collapses. 02700_ as-57221 destroyed. 02700_ as-75160 destroyed. 02701_ Lgt. Assault Rifle severed. 02702_ as-39169 destroyed. 02702_ as-11485 destroyed. 02704_ The unstable cave ceiling collapses. 02704_ 1 Matter crushed. 02704_ as-00837 destroyed. 02706_ Acquired Lgt. Assault Rifle. 02708_ K-01 Serf collects debris. Map ----- +----------------------------------------------------+ | ????????????????????#################### | | ???????????????????##################### | | ??????????????????############ "## #### | | ?????????????##?############# " ### | | ????????##?????############## " ### | | ???????????????############## " ### | | ????#?#??????#?############### " ### | | ??????###?#??################# " ### | | ?#?#???####?#?################ ##### | | ???#??#??#???################### ###### | | ??????#?#???#################### *###### | | ?#????#?###?####### #!%# | | ???################ # # | | ??########?######## | | ??##?############## # # | | #?#?#?####### # # | | ?#?#?#?## ############ ###### | | ?#?#?##?# ##### | | ?#??##?## a ##### | | #?###### a ########### ##### | | #####?### ############### | | ?#?#?## d ############### | | ?#?##### ############### | | ######### ############### | | #?###### ############### | | ## ### @ ############### | | # ? ### % ############### | | # #### ! ##################### | | # #### ##################### | | # k ########################## | | # #### #########################?# | | ## #### ####################?###### | | ######### ###############?########### | | # # ########################### | | # # ########################### | | # # #############?############# | | # # ########################### | | # # ################# # | | # ##### # | | # # # | | # ## ######## ### ##### # | | # #####?######### ##### # | | # ############### ##### # | | # ############### ##?## # | | ####################### ##### # | | ######?############### ######## # ### | | ###?###?######?####### | | #######??############# | | ##################?################# ### | | ########?##########?#?######## # | +----------------------------------------------------+ Best States ------------- Heat Dissipation 25 Energy Generation 10 Energy Capacity 250 Matter Stores 300 Matter Capacity 300 Sight Range 16 Terrain Scan Range 16 Terrain Scan Density 260 Evasion (%) 44 Recoil Reduction 1 Item Schematics ----------------- None Robot Schematics ------------------ None Fabricated ------------ Nothing Alien Tech Used ----------------- None Achievements -------------- Curiosity Killed The Cat Challenges ------------ None RPGLIKE | -11 --------- Run | Scr Levels Raised . | . XP Earned 3150 | 3150 XP Spent 1990 | 1990 Upgrades 7 | 7 Propulsion Slot 1 | 1 Utility Slot 1 | 1 Weapon Slot 1 | 1 Mass Support 1 | 1 Inventory Capacity 1 | 1 Terrain Scan Density 2 | 2 Protomatter Created 50 | 50 Integrity Restored 24 | 24 Core 24 | 24 Protomatter Decayed . | . Game ------ Seed RocketInertialTreads Manual? 0 Play Time 00:12:22 Cumulative 181.8 hours Start 2020.04.14 @ 20:26:31 End 2020.04.14 @ 20:36:01 Sessions 0 Manual Loads 0 Difficulty Rogue Special Mode Winter2019/RPGLIKE Game No. 65 Rogue 65 Adventurer 0 Explorer 0 Win Type - Total 1 Types 1/0/0/0/0/0/0 Lore% 66 Gallery% 73 Achievement% 64 Wizard Run 0 Options --------- ASCII 1 Keyboard 1 Movement Numpad Keybinds 0 Fullscreen 1 Font 16/SmallcapsGlow Map View 75x55 Tactical HUD 1 Map Filters NONE Filters NONE Steam 1 RUN: 1a4964e9-cfb2-422b-9339-4631b1c2dd93